bitfinex/quotes_BTCUSD_20250414
["timestamp","ask_amount","ask_price","bid_price","bid_amount"]
[1744597166298,0.25979907,84311.0,84310.0,0.001]
[1744597166501,0.25979907,84311.0,84310.0,0.002]
[1744597166698,0.02212607,84311.0,84310.0,0.002]
[1744597167124,0.02212607,84311.0,84310.0,0.191775]
[1744597167500,0.02212607,84311.0,84310.0,0.20394965]
[1744597168627,0.161299,84319.0,84316.0,0.01186]
[1744597168812,0.161299,84319.0,84317.0,0.01218386]
[1744597168993,0.161299,84319.0,84315.0,0.01186]
[1744597169191,0.14944,84319.0,84318.0,0.189757]
[1744597169392,0.14944,84319.0,84318.0,0.01218518]
[1744597169594,0.14944,84319.0,84316.0,0.201622]
[1744597169832,0.14944,84319.0,84317.0,0.01218386]
[1744597170014,0.15044,84319.0,84317.0,0.01218386]
[1744597170632,0.31059854,84318.0,84317.0,0.01218386]
[1744597170839,0.01186,84312.0,84308.0,0.011861]
[1744597171041,0.01186,84312.0,84309.0,0.01217465]
[1744597171243,0.011859,84318.0,84314.0,0.189764]
[1744597171572,0.02210325,84317.0,84315.0,0.01218255]
[1744597171949,0.02210325,84317.0,84313.0,0.201627]
[1744597172150,0.02210325,84317.0,84316.0,0.01218123]
[1744597172362,0.201622,84316.0,84310.0,0.201635]
[1744597172674,0.01186,84314.0,84310.0,0.01186]
[1744597173107,0.201627,84314.0,84308.0,0.011861]
[1744597173286,0.201627,84314.0,84307.0,0.00089079]
[1744597173287,0.189778,84309.0,84307.0,0.00089079]
[1744597174306,0.03316414,84308.0,84307.0,0.00089079]
[1744597175482,0.03316414,84308.0,84307.0,0.00289079]
[1744597175683,0.02210912,84308.0,84307.0,0.00289079]
[1744597176072,0.07070912,84308.0,84307.0,0.00389079]
[1744597177519,0.0817667,84308.0,84307.0,0.00389079]
[1744597177792,0.0817667,84308.0,84307.0,0.00089079]
[1744597178055,0.0817667,84308.0,84307.0,0.00189079]
[1744597178227,0.02210912,84308.0,84307.0,0.00189079]
[1744597178432,0.189779,84309.0,84307.0,0.01314022]
[1744597179215,0.189779,84309.0,84307.0,0.00089079]
[1744597181067,0.12084154,84308.0,84307.0,0.00089079]
[1744597181645,0.011859,84322.0,84307.0,0.00089079]
[1744597181898,0.011859,84320.0,84316.0,0.01186]
[1744597182142,0.339195,84319.0,84315.0,0.01186]
[1744597182383,0.14944,84319.0,84316.0,0.01186]
[1744597182610,0.02211285,84318.0,84316.0,0.02412223]
[1744597183019,0.14944,84319.0,84316.0,0.02412223]
[1744597183020,0.02211285,84317.0,84316.0,0.02412223]
[1744597184519,0.16951285,84317.0,84316.0,0.02412223]
[1744597184942,0.17251285,84317.0,84316.0,0.02412223]
[1744597185945,0.02711285,84317.0,84316.0,0.02412223]
[1744597186409,0.005,84317.0,84316.0,0.02412223]
[1744597187579,0.003,84317.0,84316.0,0.02412223]
[1744597187803,0.1474,84322.0,84319.0,0.011859]
[1744597188180,0.1474,84322.0,84320.0,0.01223766]
[1744597188561,0.1474,84322.0,84321.0,0.01223766]
[1744597188766,0.1474,84322.0,84319.0,0.011859]
[1744597188980,0.1474,84322.0,84320.0,0.20199066]
[1744597189237,0.1494,84322.0,84320.0,0.20199066]
[1744597189620,0.1524,84322.0,84320.0,0.20199066]
[1744597190881,0.1544,84322.0,84320.0,0.20199066]
[1744597191282,0.1474,84322.0,84320.0,0.20199066]
[1744597191696,0.1524,84322.0,84320.0,0.20199066]
[1744597192936,0.1494,84322.0,84320.0,0.20199066]
[1744597193328,0.1514,84322.0,84320.0,0.20199066]
[1744597193517,0.1494,84322.0,84320.0,0.20199066]
[1744597193870,0.1514,84322.0,84320.0,0.20199066]
[1744597194457,0.1514,84322.0,84320.0,0.01223766]
[1744597194594,0.011859,84320.0,84315.0,0.01186]
[1744597194926,0.011859,84321.0,84316.0,0.02409502]
[1744597195498,0.201612,84320.0,84316.0,0.02409502]
[1744597195702,0.202612,84320.0,84316.0,0.02409502]
[1744597196124,0.202612,84320.0,84316.0,0.01223502]
[1744597196330,0.011859,84319.0,84316.0,0.01223502]
[1744597197201,0.189757,84318.0,84316.0,0.01223502]
[1744597197428,0.201622,84316.0,84310.0,0.201633]
[1744597197626,0.01186,84315.0,84311.0,0.02408976]
[1744597197803,0.01186,84315.0,84312.0,0.01186]
[1744597197998,0.01186,84314.0,84313.0,0.01222844]
[1744597198203,0.201626,84315.0,84311.0,0.01186]
[1744597198420,0.349026,84315.0,84312.0,0.01222844]
[1744597198623,0.1474,84315.0,84312.0,0.02408844]
[1744597200190,0.1474,84315.0,84313.0,0.189766]
[1744597200669,0.1474,84315.0,84314.0,0.01222844]
[1744597203834,0.011859,84323.0,84314.0,0.01222844]
[1744597203835,0.0483,84337.0,84314.0,0.06200042]
[1744597204163,0.0483,84337.0,84334.0,0.189721]
[1744597204164,0.12084154,84336.0,84334.0,0.189721]
[1744597204366,0.0483,84337.0,84334.0,0.201578]
[1744597204546,0.14608,84339.0,84337.0,0.189713]
[1744597205055,0.14608,84339.0,84338.0,0.01219805]
[1744597205607,0.14608,84339.0,84338.0,0.01965337]
[1744597206015,0.15308,84339.0,84338.0,0.01965337]
[1744597206438,0.14908,84339.0,84338.0,0.01965337]
[1744597207239,0.14608,84339.0,84338.0,4.639e-05]
[1744597207803,0.14908,84339.0,84338.0,4.639e-05]
[1744597208050,0.14908,84339.0,84338.0,0.01218015]
[1744597208225,0.15308,84339.0,84338.0,0.01218015]
[1744597208654,0.15308,84339.0,84338.0,4.639e-05]
[1744597208860,0.007,84339.0,84338.0,4.639e-05]
[1744597209045,0.007,84339.0,84338.0,0.01217029]
[1744597209424,0.007,84339.0,84338.0,0.01957854]
[1744597210675,0.007,84339.0,84338.0,0.14279129]
[1744597211055,0.007,84339.0,84338.0,0.14042008]
[1744597211574,0.003,84339.0,84338.0,0.14042008]
[1744597211772,0.007,84339.0,84338.0,0.14042008]
[1744597211980,0.004,84339.0,84338.0,0.14042008]
[1744597212381,0.007,84339.0,84338.0,0.14042008]
[1744597212577,0.007,84339.0,84338.0,0.14279108]
[1744597212978,0.007,84339.0,84338.0,0.15733193]
[1744597213185,0.007,84339.0,84338.0,0.96523193]
[1744597213407,0.007,84339.0,84338.0,0.96286093]
[1744597213796,0.004,84339.0,84338.0,0.96286093]
[1744597213968,0.006,84339.0,84338.0,0.96286093]
[1744597214444,0.002,84339.0,84338.0,0.96286093]
[1744597215015,0.0004222,84352.0,84349.0,0.011855]
[1744597215223,0.0004222,84352.0,84350.0,0.189685]
[1744597215428,0.0004222,84352.0,84351.0,0.00740825]
[1744597215602,0.0004222,84352.0,84351.0,0.01948056]
[1744597216432,0.0054222,84352.0,84351.0,0.01948056]
[1744597216983,0.0084222,84352.0,84351.0,0.01207231]
[1744597217384,0.0054222,84352.0,84351.0,0.01207231]
[1744597217905,0.0084222,84352.0,84351.0,0.01207231]
[1744597218288,0.0034222,84352.0,84351.0,0.01207231]
[1744597218511,0.0084222,84352.0,84351.0,0.01207231]
[1744597218915,0.0084222,84352.0,84351.0,0.01947942]
[1744597220154,0.0570222,84352.0,84351.0,0.01947942]
[1744597220509,0.0570222,84352.0,84349.0,0.011855]
[1744597220995,0.0570222,84352.0,84350.0,0.01191796]
[1744597221356,0.0490222,84352.0,84349.0,0.011855]
[1744597221564,0.0570222,84352.0,84351.0,0.01191796]
[1744597221763,0.2467032,84352.0,84349.0,0.011855]
[1744597221969,0.2535582,84352.0,84351.0,0.01191927]
[1744597222163,0.2555582,84352.0,84350.0,0.01191796]
[1744597222380,0.0540222,84352.0,84351.0,0.01191927]
[1744597222649,0.0054222,84352.0,84351.0,0.01191927]
[1744597222826,0.0054222,84352.0,84349.0,0.011855]
[1744597222827,0.0104222,84352.0,84349.0,0.011855]
[1744597223004,0.0054222,84352.0,84351.0,0.189683]
[1744597223421,0.0104222,84352.0,84351.0,0.20160227]
[1744597224011,0.0134222,84352.0,84351.0,0.20160227]
[1744597224355,0.0104222,84352.0,84351.0,0.20160227]
[1744597224654,0.0104222,84352.0,84351.0,0.01191927]
[1744597224909,0.0124222,84352.0,84349.0,0.011855]
[1744597225150,0.0024222,84352.0,84351.0,0.01191927]
[1744597225437,0.0044222,84352.0,84350.0,0.01191796]
[1744597225598,0.0044222,84352.0,84351.0,0.20160227]
[1744597225980,0.0074222,84352.0,84351.0,0.20160227]
[1744597226415,0.0054222,84352.0,84351.0,0.20160227]
[1744597226959,0.0074222,84352.0,84351.0,0.20160227]
[1744597227336,0.0054222,84352.0,84351.0,0.20160227]
[1744597227746,0.0094222,84352.0,84351.0,0.20160227]
[1744597227944,0.0024222,84352.0,84351.0,0.20160227]
[1744597228142,0.0024222,84352.0,84351.0,0.20900948]
[1744597228365,0.0054222,84352.0,84351.0,0.20900948]
[1744597230849,0.0054222,84352.0,84351.0,0.01932648]
[1744597231299,0.058055,84351.0,84347.0,0.011855]
[1744597231542,0.201543,84350.0,84345.0,0.00740721]
[1744597231718,0.201543,84350.0,84338.0,4.639e-05]
[1744597231719,0.011856,84341.0,84338.0,4.639e-05]
[1744597231927,0.189708,84340.0,84338.0,4.639e-05]
[1744597232306,0.0462,84339.0,84338.0,4.639e-05]
[1744597232706,0.16704154,84339.0,84338.0,4.639e-05]
[1744597232921,0.1758148,84339.0,84338.0,0.00104639]
[1744597233300,0.0462,84339.0,84338.0,0.00104639]
[1744597233684,0.189708,84340.0,84338.0,0.00104639]
[1744597234391,0.001,84339.0,84338.0,0.00204639]
[1744597234607,0.001,84339.0,84338.0,4.639e-05]
[1744597234858,0.189708,84340.0,84338.0,4.639e-05]
[1744597235007,0.191708,84340.0,84338.0,4.639e-05]
[1744597236029,0.190708,84340.0,84338.0,4.639e-05]
[1744597236246,0.189708,84340.0,84338.0,4.639e-05]
[1744597236646,0.001,84339.0,84338.0,4.639e-05]
[1744597237059,0.189708,84340.0,84338.0,4.639e-05]
[1744597237305,0.190708,84340.0,84338.0,4.639e-05]
[1744597238376,0.001,84339.0,84338.0,4.639e-05]
[1744597238828,0.190708,84340.0,84338.0,4.639e-05]
[1744597238983,0.191708,84340.0,84338.0,4.639e-05]
[1744597239180,0.190708,84340.0,84338.0,4.639e-05]
[1744597239616,0.001,84339.0,84338.0,4.639e-05]
[1744597239817,0.16764154,84339.0,84338.0,4.639e-05]
[1744597239989,0.21364154,84339.0,84338.0,4.639e-05]
[1744597240208,2.19054154,84339.0,84338.0,4.639e-05]
[1744597240405,2.19054154,84339.0,84307.0,0.0008444]
[1744597240406,0.18978,84308.0,84307.0,0.0008444]
[1744597240755,0.01186,84310.0,84307.0,0.0008444]
[1744597240961,0.14896,84314.0,84311.0,0.01186]
[1744597241171,0.14896,84314.0,84311.0,0.201633]
[1744597241331,0.14896,84314.0,84312.0,0.01203652]
[1744597242721,0.14896,84314.0,84312.0,0.01403652]
[1744597244047,0.14896,84314.0,84312.0,0.01503652]
[1744597245014,0.189769,84313.0,84312.0,0.01503652]
[1744597245438,0.189769,84313.0,84312.0,0.003]
[1744597246060,0.189769,84313.0,84312.0,0.001]
[1744597246516,0.14896,84314.0,84312.0,0.001]
[1744597246671,0.14896,84314.0,84313.0,0.20192404]
[1744597247815,0.14896,84314.0,84313.0,0.20292404]
[1744597248894,0.14896,84314.0,84313.0,0.20492404]
[1744597252639,0.14896,84314.0,84313.0,0.32576558]
[1744597252873,0.149,84329.0,84325.0,0.011858]
[1744597253092,0.011858,84328.0,84324.0,0.011859]
[1744597253309,0.011858,84328.0,84326.0,0.0121481]
[1744597253535,0.33887389,84329.0,84326.0,0.011858]
[1744597253536,0.14913889,84329.0,84326.0,0.011858]
[1744597253734,0.14913889,84329.0,84327.0,0.0121481]
[1744597254158,0.34087389,84329.0,84327.0,0.0121481]
[1744597254375,0.011858,84328.0,84324.0,0.011859]
[1744597254777,0.203595,84328.0,84325.0,0.01214679]
[1744597255162,0.203595,84328.0,84324.0,0.011859]
[1744597255367,0.013858,84328.0,84324.0,0.011859]
[1744597255578,0.011858,84328.0,84325.0,0.01214679]
[1744597255900,0.013858,84328.0,84325.0,0.01214679]
[1744597256095,0.013858,84328.0,84324.0,0.011859]
[1744597256238,0.162858,84328.0,84324.0,0.011859]
[1744597256473,0.164858,84328.0,84325.0,0.01214152]
[1744597256675,0.354595,84328.0,84325.0,0.01214152]
[1744597256924,0.354595,84328.0,84324.0,0.011859]
[1744597257253,0.164858,84328.0,84325.0,0.01214284]
[1744597257407,0.163858,84328.0,84325.0,0.01214284]
[1744597257571,0.163858,84328.0,84324.0,0.011859]
[1744597257770,0.160858,84328.0,84324.0,0.011859]
[1744597258027,0.151,84328.0,84325.0,0.02400084]
[1744597258391,0.189737,84327.0,84325.0,0.01214284]
[1744597258742,0.201595,84327.0,84323.0,0.011859]
[1744597258942,0.201595,84327.0,84324.0,0.01209752]
[1744597260309,0.162858,84328.0,84324.0,0.02395652]
[1744597260566,0.161858,84328.0,84324.0,0.01209752]
[1744597260863,0.001,84327.0,84324.0,0.01209752]
[1744597261063,0.001,84327.0,84324.0,0.21369952]
[1744597261231,0.001,84327.0,84325.0,0.189739]
[1744597261831,0.001,84327.0,84326.0,0.01209752]
[1744597262075,0.15,84328.0,84326.0,0.01209752]
[1744597262277,0.001,84327.0,84326.0,0.01209752]
[1744597262653,0.339735,84328.0,84324.0,0.011859]
[1744597262966,0.001,84327.0,84324.0,0.011859]
[1744597263165,0.002,84327.0,84325.0,0.01207092]
[1744597263573,0.001,84327.0,84325.0,0.01207092]
[1744597263776,0.189739,84326.0,84325.0,0.01207092]
[1744597263973,0.201606,84323.0,84319.0,0.011859]
[1744597264380,0.201606,84323.0,84320.0,0.011859]
[1744597264778,0.011858,84325.0,84320.0,0.011859]
[1744597265198,0.011858,84325.0,84321.0,0.01206451]
[1744597265712,0.201603,84324.0,84321.0,0.01206451]
[1744597267410,0.011859,84324.0,84321.0,0.01206451]
[1744597267615,0.350593,84328.0,84322.0,0.011859]
[1744597267818,0.160858,84328.0,84325.0,0.011858]
[1744597268026,0.149,84328.0,84326.0,0.189738]
[1744597268227,0.149,84328.0,84326.0,0.20181455]
[1744597268452,0.149,84328.0,84326.0,0.20418606]
[1744597268649,0.149,84328.0,84326.0,0.20181455]
[1744597269238,0.149,84328.0,84327.0,0.00740906]
[1744597269622,0.149,84328.0,84327.0,0.01947508]
[1744597269941,0.15,84328.0,84327.0,0.01947508]
[1744597270349,0.149,84328.0,84327.0,0.01947508]
[1744597270521,0.15,84328.0,84327.0,0.01947508]
[1744597273804,0.15,84328.0,84327.0,0.01206602]
[1744597275760,0.15,84328.0,84327.0,0.0194753]
[1744597275938,0.001,84328.0,84327.0,0.0194753]
[1744597276099,0.001,84328.0,84327.0,0.02184673]
[1744597278344,0.001,84328.0,84327.0,0.54322912]
[1744597278662,8.9e-07,84329.0,84328.0,0.54427585]
[1744597278841,8.9e-07,84329.0,84328.0,0.75841739]
[1744597279045,8.9e-07,84329.0,84328.0,0.77036363]
[1744597279449,8.9e-07,84329.0,84328.0,0.77777291]
[1744597280406,8.9e-07,84329.0,84328.0,0.78477291]
[1744597280801,8.9e-07,84329.0,84328.0,0.79472974]
[1744597281849,8.9e-07,84329.0,84328.0,0.79272974]
[1744597281998,8.9e-07,84329.0,84328.0,0.79572974]
[1744597282177,8.9e-07,84329.0,84328.0,0.79072974]
[1744597283608,8.9e-07,84329.0,84328.0,0.79572974]
[1744597283973,8.9e-07,84329.0,84328.0,0.78577291]
[1744597284225,8.9e-07,84329.0,84328.0,0.33793206]
[1744597284451,8.9e-07,84329.0,84328.0,0.21709052]
[1744597284832,8.9e-07,84329.0,84328.0,0.20968124]
[1744597284984,8.9e-07,84329.0,84328.0,0.33289422]
[1744597285186,8.9e-07,84329.0,84328.0,0.34506363]
[1744597285386,8.9e-07,84329.0,84328.0,0.68206363]
[1744597285813,8.9e-07,84329.0,84328.0,0.68506363]
[1744597286018,8.9e-07,84329.0,84328.0,0.54968124]
[1744597286222,8.9e-07,84329.0,84328.0,0.20668124]
[1744597286753,8.9e-07,84329.0,84328.0,0.20868124]
[1744597286907,8.9e-07,84329.0,84328.0,0.33189422]
[1744597287111,8.9e-07,84329.0,84328.0,0.34406363]
[1744597287422,8.9e-07,84329.0,84328.0,0.33906363]
[1744597287629,8.9e-07,84329.0,84328.0,0.76076363]
[1744597288590,8.9e-07,84329.0,84328.0,0.74622278]
[1744597288939,8.9e-07,84329.0,84328.0,0.76076363]
[1744597289138,8.9e-07,84329.0,84328.0,1.14806363]
[1744597290064,8.9e-07,84329.0,84328.0,1.1554717]
[1744597291134,8.9e-07,84329.0,84328.0,1.1564717]
[1744597291337,8.9e-07,84329.0,84328.0,1.2564717]
[1744597291835,8.9e-07,84329.0,84328.0,1.25788946]
[1744597292262,8.9e-07,84329.0,84328.0,1.25588946]
[1744597292546,8.9e-07,84329.0,84328.0,1.25888946]
[1744597292751,8.9e-07,84329.0,84328.0,1.25588946]
[1744597292906,8.9e-07,84329.0,84328.0,1.25988946]
[1744597294095,0.0004222,84352.0,84351.0,0.34]
[1744597294297,0.0004222,84352.0,84351.0,0.8940815]
[1744597294512,0.0004222,84352.0,84351.0,0.90579922]
[1744597295988,0.0014222,84352.0,84351.0,0.91320456]
[1744597296446,8e-07,84353.0,84352.0,0.54422185]
[1744597296654,8e-07,84353.0,84352.0,0.66506339]
[1744597296847,8e-07,84353.0,84352.0,0.67669085]
[1744597297058,0.0004222,84363.0,84360.0,0.54420385]
[1744597297236,0.0004222,84363.0,84360.0,0.66504539]
[1744597297437,0.00056127,84361.0,84360.0,0.68408435]
[1744597298057,0.00056127,84361.0,84360.0,0.68856821]
[1744597298670,0.00056127,84361.0,84360.0,0.69056821]
[1744597299924,0.00056127,84361.0,84360.0,0.69356821]
[1744597301779,0.00056127,84361.0,84360.0,0.67902736]
[1744597301976,0.00056127,84361.0,84360.0,0.20629662]
[1744597303256,0.00056127,84361.0,84360.0,0.20329662]
[1744597303653,0.00056127,84361.0,84360.0,0.01663362]
[1744597303859,0.00056127,84361.0,84360.0,0.01363362]
[1744597304626,0.00056127,84361.0,84360.0,0.01163362]
[1744597305038,0.00056127,84361.0,84360.0,0.01363362]
[1744597305435,0.00056127,84361.0,84360.0,0.01163362]
[1744597306342,0.00056127,84361.0,84360.0,0.01263362]
[1744597308856,0.00056127,84361.0,84360.0,0.14801601]
[1744597309467,0.00056127,84361.0,84360.0,0.01263362]
[1744597316087,0.00056127,84361.0,84360.0,0.02003959]
[1744597316600,0.00056127,84361.0,84360.0,0.02241007]
[1744597316816,0.00056127,84361.0,84360.0,0.02003959]
[1744597317426,0.00056127,84361.0,84360.0,0.02241007]
[1744597319441,0.00056127,84361.0,84360.0,0.02003959]
[1744597319889,0.00056127,84361.0,84360.0,0.15779253]
[1744597321138,0.00056127,84361.0,84360.0,0.49779253]
[1744597321345,2.7e-07,84361.0,84360.0,0.91412109]
[1744597322192,6.7e-07,84366.0,84363.0,0.64419685]
[1744597322392,4.7e-05,84366.0,84365.0,0.66503439]
[1744597322535,4.7e-05,84366.0,84365.0,0.67654932]
[1744597322740,4.7e-05,84366.0,84365.0,0.68395529]
[1744597323378,4.7e-05,84366.0,84365.0,0.68765751]
[1744597323825,4.7e-05,84366.0,84365.0,0.68865751]
[1744597323986,4.7e-05,84366.0,84365.0,0.68965751]
[1744597324875,4.7e-05,84366.0,84365.0,0.68595529]
[1744597325039,4.7e-05,84366.0,84365.0,0.67854932]
[1744597325606,4.7e-05,84366.0,84365.0,0.32400847]
[1744597325821,4.7e-05,84366.0,84365.0,0.01351493]
[1744597329868,0.235196,84366.0,84365.0,0.01351493]
[1744597330073,0.235196,84366.0,84365.0,0.01151493]
[1744597330265,0.045547,84366.0,84362.0,0.189655]
[1744597330618,0.046547,84366.0,84363.0,0.201509]
[1744597330827,0.001047,84366.0,84365.0,0.189652]
[1744597331078,0.001047,84366.0,84365.0,0.31049354]
[1744597331321,0.001047,84366.0,84365.0,0.33761948]
[1744597331503,0.001047,84366.0,84365.0,0.34502447]
[1744597331726,0.001047,84366.0,84365.0,0.76372358]
[1744597331975,4.7e-05,84366.0,84365.0,0.76372358]
[1744597333373,4.7e-05,84366.0,84365.0,1.10372358]
[1744597333782,4.7e-05,84366.0,84365.0,1.10472358]
[1744597334338,4.7e-05,84366.0,84365.0,1.10372358]
[1744597334542,4.7e-05,84366.0,84365.0,1.10572358]
[1744597335350,4.7e-05,84366.0,84365.0,1.10472358]
[1744597335511,4.7e-05,84366.0,84365.0,1.10572358]
[1744597335713,4.7e-05,84366.0,84365.0,1.10372358]
[1744597336174,4.7e-05,84366.0,84365.0,1.10472358]
[1744597340293,4.7e-05,84366.0,84365.0,1.09731859]
[1744597342095,4.7e-05,84366.0,84365.0,1.08277774]
[1744597342514,4.7e-05,84366.0,84365.0,1.09731859]
[1744597347072,0.002,84379.0,84365.0,1.09731859]
[1744597347073,0.002,84379.0,84378.0,0.20416285]
[1744597347269,0.00246344,84379.0,84378.0,0.32500439]
[1744597347474,0.00246344,84379.0,84378.0,0.33565829]
[1744597348300,0.00346344,84379.0,84378.0,0.33565829]
[1744597349259,0.00446344,84379.0,84378.0,0.33565829]
[1744597350289,0.00446344,84379.0,84378.0,0.7543574]
[1744597350978,0.00446344,84379.0,84378.0,1.0943574]
[1744597351115,0.00446344,84379.0,84378.0,1.10645944]
[1744597351974,0.00346344,84379.0,84378.0,1.10645944]
[1744597352231,0.00246344,84379.0,84378.0,1.10645944]
[1744597358103,0.04836344,84379.0,84378.0,1.09191859]
[1744597359113,0.04836344,84379.0,84378.0,0.55237794]
[1744597359478,0.04836344,84379.0,84378.0,0.2002759]
[1744597362778,0.04836344,84379.0,84378.0,0.0106539]
[1744597363159,0.04836344,84379.0,84377.0,0.189624]
[1744597363322,0.00246344,84379.0,84378.0,0.01064896]
[1744597363546,0.00246344,84379.0,84378.0,0.01301898]
[1744597363753,0.00246344,84379.0,84378.0,0.01064896]
[1744597370313,0.00246344,84379.0,84378.0,0.14603135]
[1744597370726,0.00246344,84379.0,84378.0,0.14840122]
[1744597372371,0.00246344,84379.0,84378.0,0.14603135]
[1744597375688,0.00246344,84379.0,84378.0,0.55018961]
[1744597376732,0.23758344,84379.0,84378.0,0.42934807]
[1744597377429,0.0455,84361.0,84356.0,0.011854]
[1744597377561,0.0455,84361.0,84356.0,0.201525]
[1744597377765,0.0455,84361.0,84358.0,0.189667]
[1744597377973,0.0455,84361.0,84358.0,0.201521]
[1744597379233,0.0455,84361.0,84358.0,0.203521]
[1744597380548,0.0455,84361.0,84358.0,0.205521]
[1744597380959,0.19828229,84383.0,84376.0,0.201478]
[1744597380960,0.0455,84378.0,84376.0,0.201478]
[1744597381187,0.0455,84378.0,84374.0,0.201482]
[1744597381363,0.0455,84378.0,84375.0,0.011851]
[1744597381912,0.057351,84378.0,84375.0,0.011851]
[1744597382230,0.059351,84378.0,84374.0,0.011851]
[1744597382651,0.057351,84378.0,84374.0,0.011851]
[1744597383205,0.011851,84377.0,84374.0,0.011851]
[1744597383408,0.0455,84378.0,84375.0,0.011851]
[1744597383550,0.0455,84378.0,84376.0,0.189625]
[1744597383750,0.0485,84378.0,84376.0,0.189625]
[1744597383954,0.15386344,84379.0,84378.0,0.189622]
[1744597384362,0.15386344,84379.0,84378.0,0.31046354]
[1744597384570,0.00246344,84379.0,84378.0,0.66500439]
[1744597385510,0.00446344,84379.0,84378.0,0.66500439]
[1744597386030,0.00246344,84379.0,84378.0,0.66500439]
[1744597387060,0.00246344,84379.0,84378.0,1.0837035]
[1744597389307,4.4e-07,84379.0,84378.0,1.0837035]
[1744597390000,4.4e-07,84379.0,84378.0,1.09110606]
[1744597390723,4.4e-07,84379.0,84378.0,1.09480776]
[1744597390923,4.4e-07,84379.0,84378.0,1.0874052]
[1744597391327,4.4e-07,84379.0,84378.0,1.0884052]
[1744597391814,4.4e-07,84379.0,84378.0,1.0874052]
[1744597392441,4.4e-07,84379.0,84378.0,1.09715855]
[1744597392947,4.4e-07,84379.0,84378.0,1.10456197]
[1744597396933,4.4e-07,84379.0,84378.0,0.21048047]
[1744597398113,4.4e-07,84379.0,84378.0,0.20307705]
[1744597401684,0.28472044,84379.0,84378.0,0.01345505]
[1744597401855,0.28472044,84379.0,84378.0,0.0047017]
[1744597402422,0.28472044,84379.0,84378.0,0.001]
[1744597402644,0.28472044,84379.0,84378.0,0.0098002]
[1744597402645,0.09510044,84379.0,84378.0,0.0098002]
[1744597403041,0.09510044,84379.0,84378.0,0.0088002]
[1744597403206,0.09510044,84379.0,84376.0,0.201478]
[1744597403407,0.09510044,84379.0,84377.0,0.00879889]
[1744597403847,0.09510044,84379.0,84378.0,0.189622]
[1744597404049,4.4e-07,84379.0,84378.0,0.198494]
[1744597404227,4.4e-07,84379.0,84378.0,0.32170574]
[1744597404437,4.4e-07,84379.0,84378.0,0.32033554]
[1744597404839,4.4e-07,84379.0,84378.0,0.31933554]
[1744597405045,4.4e-07,84379.0,84378.0,0.34228043]
[1744597405289,4.4e-07,84379.0,84378.0,0.34598242]
[1744597406354,4.4e-07,84379.0,84378.0,0.33487639]
[1744597407756,4.4e-07,84379.0,84378.0,0.67487639]
[1744597407965,4.4e-07,84379.0,84378.0,1.1397755]
[1744597408772,4.4e-07,84379.0,84378.0,1.1878755]
[1744597408986,4.4e-07,84379.0,84378.0,1.1868755]
[1744597409186,4.4e-07,84379.0,84378.0,1.1888755]
[1744597409588,4.4e-07,84379.0,84378.0,1.1908755]
[1744597414166,4.4e-07,84379.0,84378.0,1.1918755]
[1744597419099,4.4e-07,84379.0,84378.0,1.1908755]
[1744597419766,4.4e-07,84379.0,84378.0,1.1446755]
[1744597423037,2e-07,84395.0,84392.0,0.351849]
[1744597423248,0.000422,84413.0,84411.0,0.01454085]
[1744597423534,0.000561,84413.0,84412.0,0.56257252]
[1744597424938,0.002561,84413.0,84412.0,0.42719013]
[1744597425239,0.007561,84413.0,84412.0,0.42719013]
[1744597428415,0.007561,84413.0,84412.0,0.00849102]
[1744597432871,0.005561,84413.0,84412.0,0.00849102]
[1744597433151,0.007561,84413.0,84412.0,0.00849102]
[1744597433359,0.007561,84413.0,84412.0,0.14624257]
[1744597433539,0.007561,84413.0,84412.0,0.14387341]
[1744597433743,0.002561,84413.0,84412.0,0.14387341]
[1744597434044,0.006561,84413.0,84412.0,0.14387341]
[1744597434460,0.004561,84413.0,84412.0,0.14387341]
[1744597434630,0.000561,84413.0,84412.0,0.14387341]
[1744597434957,0.002561,84413.0,84412.0,0.14387341]
[1744597435508,0.0454,84422.0,84419.0,0.011845]
[1744597435509,0.0318732,84422.0,84419.0,0.011845]
[1744597435716,0.0318732,84422.0,84420.0,0.19799986]
[1744597436419,0.0493,84433.0,84431.0,0.189501]
[1744597436774,0.061143,84433.0,84432.0,0.00844575]
[1744597437202,0.061143,84433.0,84429.0,0.011844]
[1744597437689,0.011844,84430.0,84426.0,0.201357]
[1744597437990,0.011844,84430.0,84427.0,0.00844248]
[1744597438346,0.201351,84430.0,84427.0,0.00844248]
[1744597438560,0.0454,84429.0,84427.0,0.00844248]
[1744597438962,0.02214365,84428.0,84427.0,0.00844248]
[1744597439827,0.21165365,84428.0,84427.0,0.00844248]
[1744597440033,0.25705365,84428.0,84427.0,0.00844248]
[1744597440173,0.057245,84417.0,84414.0,0.011846]
[1744597440382,0.011846,84410.0,84406.0,0.189559]
[1744597440759,0.250683,84416.0,84411.0,0.011846]
[1744597441154,0.011846,84413.0,84408.0,0.011847]
[1744597441362,0.011846,84413.0,84410.0,0.189551]
[1744597441712,0.011846,84415.0,84411.0,0.011846]
[1744597442301,0.0493,84416.0,84414.0,0.189542]
[1744597443233,0.0503,84416.0,84414.0,0.189542]
[1744597443621,0.0493,84416.0,84414.0,0.189542]
[1744597444103,0.0503,84416.0,84414.0,0.189542]
[1744597444295,0.0523,84416.0,84414.0,0.189542]
[1744597445047,0.0523,84416.0,84413.0,0.011846]
[1744597445471,0.0523,84416.0,84409.0,0.011847]
[1744597445472,0.011847,84409.0,84405.0,0.011847]
[1744597445670,0.011847,84409.0,84406.0,0.011847]
[1744597445873,0.011846,84412.0,84408.0,0.011847]
[1744597446077,0.064146,84416.0,84409.0,0.2014]
[1744597446306,0.064146,84416.0,84413.0,0.011846]
[1744597446509,0.0513,84416.0,84413.0,0.20139]
[1744597446716,0.002,84416.0,84415.0,0.189539]
[1744597447143,0.003,84416.0,84415.0,0.31038054]
[1744597447340,0.001,84416.0,84415.0,0.32492139]
[1744597447542,9.327e-05,84417.0,84416.0,0.01454085]
[1744597447747,9.327e-05,84417.0,84416.0,0.13538239]
[1744597448388,9.327e-05,84417.0,84416.0,0.13775119]
[1744597448796,9.327e-05,84417.0,84416.0,0.8964503]
[1744597448967,9.327e-05,84417.0,84416.0,0.8940815]
[1744597449190,0.00309327,84417.0,84416.0,0.90148209]
[1744597449935,0.00509327,84417.0,84416.0,0.90518231]
[1744597450139,0.00509327,84417.0,84416.0,0.89778172]
[1744597450782,0.00509327,84417.0,84416.0,0.8940815]
[1744597452564,0.00509327,84417.0,84416.0,0.90254758]
[1744597453588,0.002,84439.0,84438.0,0.189488]
[1744597453814,0.0020933,84439.0,84438.0,0.31032954]
[1744597454231,0.0020933,84439.0,84438.0,0.31881203]